[Event "Live Chess"]
[Site "Chess.com"]
[Date "2023.05.21"]
[Round "-"]
[White "KeithArkell"]
[Black "nigelst"]
[Result "1-0"]
[WhiteElo "2497"]
[BlackElo "1708"]
[TimeControl "300"]
[EndTime "3:34:05 PDT"]
[Termination "KeithArkell won by resignation"]

1. d4 {[%clk 0:04:58.6]} 1... Nf6 {[%clk 0:04:58.2]} 2. Nf3 {[%clk 0:04:57.8]}
2... e6 {[%clk 0:04:57.2]} 3. c4 {[%clk 0:04:57.2]} 3... Bb4+ {[%clk 0:04:54.9]}
4. Bd2 {[%clk 0:04:56.3]} 4... Qe7 {[%clk 0:04:52.2]} 5. g3 {[%clk 0:04:54.6]}
5... O-O {[%clk 0:04:50.1]} 6. Bg2 {[%clk 0:04:53.4]} 6... Nc6 {[%clk
0:04:44.6]} 7. Nc3 {[%clk 0:04:52.2]} 7... Bxc3 {[%clk 0:04:41]} 8. Bxc3 {[%clk
0:04:51]} 8... Ne4 {[%clk 0:04:40.5]} 9. Rc1 {[%clk 0:04:50]} 9... Nxc3 {[%clk
0:04:39.2]} 10. Rxc3 {[%clk 0:04:49.1]} 10... d6 {[%clk 0:04:37.2]} 11. d5
{[%clk 0:04:48.5]} 11... Nb8 {[%clk 0:04:33]} 12. dxe6 {[%clk 0:04:47.2]} 12...
Bxe6 {[%clk 0:04:31.3]} 13. O-O {[%clk 0:04:46.1]} 13... Nd7 {[%clk 0:04:29.8]}
14. Nd4 {[%clk 0:04:45]} 14... Rab8 {[%clk 0:04:23.3]} 15. Re3 {[%clk
0:04:40.7]} 15... Ne5 {[%clk 0:04:14.9]} 16. b3 {[%clk 0:04:38.9]} 16... Ng4
{[%clk 0:04:07.3]} 17. Rd3 {[%clk 0:04:35.7]} 17... Ne5 {[%clk 0:04:02.2]} 18.
Rd2 {[%clk 0:04:33.9]} 18... f5 {[%clk 0:03:54.4]} 19. Nxe6 {[%clk 0:04:32.7]}
19... c6 {[%clk 0:03:47.7]} 20. Nxf8 {[%clk 0:04:31]} 1-0

[Event "Live Chess"]
[Site "Chess.com"]
[Date "2023.05.21"]
[Round "-"]
[White "SupremeTactician"]
[Black "Abde2012"]
[Result "1-0"]
[WhiteElo "2219"]
[BlackElo "736"]
[TimeControl "300"]
[EndTime "3:34:13 PDT"]
[Termination "SupremeTactician won by resignation"]

1. e4 {[%clk 0:04:59.2]} 1... c6 {[%clk 0:04:55.6]} 2. d4 {[%clk 0:04:58.2]}
2... d5 {[%clk 0:04:51.1]} 3. Nc3 {[%clk 0:04:56.9]} 3... Be6 {[%clk 0:04:46.5]}
4. exd5 {[%clk 0:04:47.6]} 4... cxd5 {[%clk 0:04:44.4]} 5. Nf3 {[%clk 0:04:46]}
5... Nf6 {[%clk 0:04:41.8]} 6. Bb5+ {[%clk 0:04:44.8]} 6... Bd7 {[%clk
0:04:39.2]} 7. Qe2 {[%clk 0:04:43.2]} 7... Bxb5 {[%clk 0:04:35.9]} 8. Qxb5+
{[%clk 0:04:42.2]} 8... Nbd7 {[%clk 0:04:34]} 9. Bg5 {[%clk 0:04:40.6]} 9... e6
{[%clk 0:04:28.8]} 10. O-O {[%clk 0:04:38.4]} 10... Bd6 {[%clk 0:04:25.7]} 11.
Ne5 {[%clk 0:04:25.5]} 11... Qc8 {[%clk 0:04:15.9]} 12. Bxf6 {[%clk 0:04:13.9]}
12... gxf6 {[%clk 0:04:14.2]} 13. Nxd7 {[%clk 0:04:13.2]} 13... Qxd7 {[%clk
0:04:11.5]} 14. Rfe1 {[%clk 0:04:05]} 14... Qxb5 {[%clk 0:04:06.9]} 15. Nxb5
{[%clk 0:04:03.1]} 15... Bb4 {[%clk 0:03:58.2]} 16. c3 {[%clk 0:03:59.9]} 16...
Ba5 {[%clk 0:03:55.3]} 17. Nd6+ {[%clk 0:03:59.2]} 17... Ke7 {[%clk 0:03:51.2]}
18. Nxb7 {[%clk 0:03:58]} 18... Bb6 {[%clk 0:03:46.5]} 19. Nc5 {[%clk
0:03:54.2]} 19... Bxc5 {[%clk 0:03:44.7]} 20. dxc5 {[%clk 0:03:54.1]} 20... Rac8
{[%clk 0:03:42.9]} 21. b4 {[%clk 0:03:53.4]} 21... a6 {[%clk 0:03:41]} 22. Rad1
{[%clk 0:03:52.3]} 22... Rhg8 {[%clk 0:03:36.6]} 23. Rxd5 {[%clk 0:03:50.9]}
23... Rcd8 {[%clk 0:03:30.2]} 24. Rxd8 {[%clk 0:03:49.3]} 24... Rxd8 {[%clk
0:03:29.7]} 25. a4 {[%clk 0:03:48.2]} 25... Rc8 {[%clk 0:03:28]} 26. f3 {[%clk
0:03:46.8]} 26... e5 {[%clk 0:03:24.1]} 27. Kf2 {[%clk 0:03:46]} 27... h5 {[%clk
0:03:20.6]} 28. Ke3 {[%clk 0:03:44.8]} 28... f5 {[%clk 0:03:17.4]} 29. Rd1
{[%clk 0:03:43.7]} 29... f4+ {[%clk 0:03:15.3]} 30. Ke4 {[%clk 0:03:43.1]} 30...
f6 {[%clk 0:03:13.2]} 31. Rd6 {[%clk 0:03:41.7]} 31... Rd8 {[%clk 0:03:07.5]}
32. Rxd8 {[%clk 0:03:40.5]} 32... Kxd8 {[%clk 0:03:06.3]} 33. b5 {[%clk
0:03:40.4]} 33... axb5 {[%clk 0:03:04.2]} 34. axb5 {[%clk 0:03:40.3]} 34... Kc7
{[%clk 0:03:02.9]} 35. Kf5 {[%clk 0:03:38.4]} 35... e4 {[%clk 0:02:58.1]} 36.
Kxe4 {[%clk 0:03:37.2]} 36... f5+ {[%clk 0:02:56]} 37. Kxf5 {[%clk 0:03:35.3]}
37... Kb7 {[%clk 0:02:55.4]} 38. Kxf4 {[%clk 0:03:34.6]} 38... Ka7 {[%clk
0:02:53.4]} 39. Kg5 {[%clk 0:03:33.2]} 39... Kb7 {[%clk 0:02:52.3]} 40. Kxh5
{[%clk 0:03:32.7]} 40... Kc7 {[%clk 0:02:50.9]} 41. g4 {[%clk 0:03:32.4]} 41...
Kb7 {[%clk 0:02:49.7]} 42. g5 {[%clk 0:03:32.3]} 42... Kc7 {[%clk 0:02:48.7]}
43. g6 {[%clk 0:03:32.2]} 43... Kb7 {[%clk 0:02:48]} 44. g7 {[%clk 0:03:32.1]}
44... Kc7 {[%clk 0:02:47.3]} 45. g8=Q {[%clk 0:03:31.6]} 1-0

[Event "Live Chess"]
[Site "Chess.com"]
[Date "2023.05.21"]
[Round "-"]
[White "Berdgross"]
[Black "Woodpusher500"]
[Result "0-1"]
[WhiteElo "668"]
[BlackElo "1094"]
[TimeControl "300"]
[EndTime "3:34:56 PDT"]
[Termination "Woodpusher500 won by resignation"]

1. e4 {[%clk 0:04:57]} 1... e5 {[%clk 0:04:57.6]} 2. d3 {[%clk 0:04:53.7]} 2...
Nc6 {[%clk 0:04:51.2]} 3. Nc3 {[%clk 0:04:49.1]} 3... Nf6 {[%clk 0:04:45.7]} 4.
Nf3 {[%clk 0:04:46.5]} 4... Bb4 {[%clk 0:04:38.5]} 5. Bg5 {[%clk 0:04:44.3]}
5... h6 {[%clk 0:04:34.8]} 6. Bxf6 {[%clk 0:04:42.6]} 6... Qxf6 {[%clk
0:04:31.1]} 7. a3 {[%clk 0:04:38.1]} 7... Ba5 {[%clk 0:04:25.2]} 8. b4 {[%clk
0:04:35.5]} 8... Bb6 {[%clk 0:04:21.3]} 9. b5 {[%clk 0:04:32.3]} 9... Ne7 {[%clk
0:04:12.2]} 10. Nd5 {[%clk 0:04:25.2]} 10... Nxd5 {[%clk 0:04:09.3]} 11. exd5
{[%clk 0:04:23.7]} 11... d6 {[%clk 0:04:00.3]} 12. c4 {[%clk 0:04:19.5]} 12...
O-O {[%clk 0:03:49.7]} 13. a4 {[%clk 0:04:13.5]} 13... a6 {[%clk 0:03:42.7]} 14.
a5 {[%clk 0:04:10.3]} 14... Ba7 {[%clk 0:03:36.5]} 15. Be2 {[%clk 0:04:01.2]}
15... axb5 {[%clk 0:03:30.8]} 16. cxb5 {[%clk 0:03:56.2]} 16... e4 {[%clk
0:03:15.6]} 17. dxe4 {[%clk 0:03:52.9]} 17... Bb6 {[%clk 0:03:00.4]} 18. axb6
{[%clk 0:03:48.6]} 18... Rxa1 {[%clk 0:02:57.6]} 19. Qxa1 {[%clk 0:03:46.2]}
19... Qxa1+ {[%clk 0:02:54.6]} 20. Bd1 {[%clk 0:03:45.7]} 20... Qc3+ {[%clk
0:02:45.3]} 21. Ke2 {[%clk 0:03:39.9]} 21... Qc4+ {[%clk 0:02:37.6]} 22. Ke1
{[%clk 0:03:35.9]} 22... Qb4+ {[%clk 0:02:30.9]} 23. Ke2 {[%clk 0:03:33.7]}
23... Qxb5+ {[%clk 0:02:29.1]} 24. Ke1 {[%clk 0:03:32]} 24... Qxb6 {[%clk
0:02:22.5]} 25. Ke2 {[%clk 0:03:21.3]} 25... Re8 {[%clk 0:02:16.9]} 26. Bc2
{[%clk 0:03:15.3]} 26... Qb5+ {[%clk 0:02:11.7]} 27. Bd3 {[%clk 0:03:12.8]}
27... Qb2+ {[%clk 0:02:07.5]} 28. Ke3 {[%clk 0:03:09.3]} 28... f5 {[%clk
0:01:59]} 29. Rb1 {[%clk 0:03:06.5]} 29... Qc3 {[%clk 0:01:46.6]} 30. Nh4 {[%clk
0:02:44.5]} 30... fxe4 {[%clk 0:01:41.4]} 0-1

[Event "Live Chess"]
[Site "Chess.com"]
[Date "2023.05.21"]
[Round "-"]
[White "MJMykh"]
[Black "Biranidun"]
[Result "0-1"]
[WhiteElo "1158"]
[BlackElo "2540"]
[TimeControl "300"]
[EndTime "3:34:58 PDT"]
[Termination "Biranidun won by resignation"]

1. e4 {[%clk 0:04:58.6]} 1... c5 {[%clk 0:04:59.1]} 2. Nc3 {[%clk 0:04:54.8]}
2... g6 {[%clk 0:04:57.6]} 3. Nf3 {[%clk 0:04:54]} 3... Bg7 {[%clk 0:04:56.7]}
4. Bb5 {[%clk 0:04:52.3]} 4... a6 {[%clk 0:04:55.4]} 5. Bc4 {[%clk 0:04:51.6]}
5... e6 {[%clk 0:04:54.5]} 6. d3 {[%clk 0:04:49.1]} 6... b5 {[%clk 0:04:53.6]}
7. Bb3 {[%clk 0:04:46.9]} 7... Nc6 {[%clk 0:04:53.4]} 8. O-O {[%clk 0:04:45.5]}
8... Nge7 {[%clk 0:04:52.5]} 9. a3 {[%clk 0:04:44.9]} 9... O-O {[%clk
0:04:51.5]} 10. Bg5 {[%clk 0:04:43.4]} 10... h6 {[%clk 0:04:50.6]} 11. Bxe7
{[%clk 0:04:42.4]} 11... Qxe7 {[%clk 0:04:49.7]} 12. Qe2 {[%clk 0:04:40]} 12...
d6 {[%clk 0:04:48.3]} 13. a4 {[%clk 0:04:36.5]} 13... Rb8 {[%clk 0:04:43.3]} 14.
axb5 {[%clk 0:04:35.3]} 14... axb5 {[%clk 0:04:43.2]} 15. Ba2 {[%clk 0:04:25.6]}
15... b4 {[%clk 0:04:41.1]} 16. Nd1 {[%clk 0:04:21.7]} 16... Ra8 {[%clk
0:04:39.1]} 17. c3 {[%clk 0:04:19]} 17... b3 {[%clk 0:04:37.4]} 0-1

[Event "Live Chess"]
[Site "Chess.com"]
[Date "2023.05.21"]
[Round "-"]
[White "raminguy"]
[Black "seasidecastle27"]
[Result "1-0"]
[WhiteElo "1971"]
[BlackElo "1889"]
[TimeControl "300"]
[EndTime "3:35:06 PDT"]
[Termination "raminguy won by resignation"]

1. d4 {[%clk 0:04:59.1]} 1... d5 {[%clk 0:04:58.2]} 2. Nc3 {[%clk 0:04:59]} 2...
e6 {[%clk 0:04:55.8]} 3. Bf4 {[%clk 0:04:58.1]} 3... Bd6 {[%clk 0:04:54]} 4. e3
{[%clk 0:04:56.9]} 4... Nf6 {[%clk 0:04:51.1]} 5. Nf3 {[%clk 0:04:55.5]} 5... c5
{[%clk 0:04:44.8]} 6. Ne5 {[%clk 0:04:53.7]} 6... Nc6 {[%clk 0:04:42.9]} 7. Bb5
{[%clk 0:04:46.6]} 7... Qc7 {[%clk 0:04:37.4]} 8. O-O {[%clk 0:04:42]} 8... Bd7
{[%clk 0:04:32]} 9. Bxc6 {[%clk 0:04:35.7]} 9... Bxc6 {[%clk 0:04:26.9]} 10. Bg3
{[%clk 0:04:30.8]} 10... Nd7 {[%clk 0:04:09]} 11. f4 {[%clk 0:04:17.9]} 11... g6
{[%clk 0:03:30.3]} 12. Qg4 {[%clk 0:04:08.1]} 12... f5 {[%clk 0:03:25.5]} 13.
Qh3 {[%clk 0:03:56.6]} 13... Nf6 {[%clk 0:03:05.4]} 14. Nxg6 {[%clk 0:03:52.1]}
14... Rg8 {[%clk 0:02:53.4]} 15. Ne5 {[%clk 0:03:43]} 15... O-O-O {[%clk
0:02:51.1]} 16. Qh4 {[%clk 0:03:36.5]} 16... Ng4 {[%clk 0:02:45]} 17. Rfe1
{[%clk 0:03:10]} 17... Be7 {[%clk 0:02:30.4]} 18. Qxh7 {[%clk 0:03:02.4]} 18...
Rh8 {[%clk 0:02:18.8]} 19. Qf7 {[%clk 0:02:56.8]} 19... cxd4 {[%clk 0:01:53.7]}
20. Qxe6+ {[%clk 0:02:48.9]} 20... Kb8 {[%clk 0:01:45.4]} 21. exd4 {[%clk
0:02:40.9]} 21... Rhf8 {[%clk 0:01:17.8]} 22. Nxc6+ {[%clk 0:02:36.8]} 22...
bxc6 {[%clk 0:01:16.3]} 23. Qxe7 {[%clk 0:02:35.2]} 1-0

[Event "Live Chess"]
[Site "Chess.com"]
[Date "2023.05.21"]
[Round "-"]
[White "sanjesh_ananda"]
[Black "mammamiatwo"]
[Result "0-1"]
[WhiteElo "1232"]
[BlackElo "1375"]
[TimeControl "300"]
[EndTime "3:35:07 PDT"]
[Termination "mammamiatwo won on time"]

1. e4 {[%clk 0:04:56.8]} 1... e5 {[%clk 0:04:59.1]} 2. Nf3 {[%clk 0:04:55.6]}
2... Qf6 {[%clk 0:04:58.4]} 3. Nc3 {[%clk 0:04:49.7]} 3... c6 {[%clk 0:04:57.4]}
4. d4 {[%clk 0:04:37.6]} 4... exd4 {[%clk 0:04:56]} 5. Nxd4 {[%clk 0:04:35.1]}
5... Bc5 {[%clk 0:04:54]} 6. Be3 {[%clk 0:04:32.7]} 6... d6 {[%clk 0:04:52.7]}
7. Bc4 {[%clk 0:04:13.1]} 7... h6 {[%clk 0:04:47.8]} 8. O-O {[%clk 0:04:07]}
8... Ne7 {[%clk 0:04:46.3]} 9. Nde2 {[%clk 0:03:45.7]} 9... Bb6 {[%clk
0:04:44.4]} 10. Qd2 {[%clk 0:03:22.5]} 10... O-O {[%clk 0:04:43.2]} 11. Ng3
{[%clk 0:03:15.2]} 11... Ng6 {[%clk 0:04:41]} 12. Nh5 {[%clk 0:03:01.3]} 12...
Qe5 {[%clk 0:04:36.2]} 13. Ng3 {[%clk 0:02:31.9]} 13... Be6 {[%clk 0:04:29.6]}
14. Bb3 {[%clk 0:02:18.9]} 14... Nd7 {[%clk 0:04:26.4]} 15. Rad1 {[%clk
0:02:08]} 15... Bc7 {[%clk 0:04:17.8]} 16. f4 {[%clk 0:01:56.2]} 16... Qa5
{[%clk 0:04:11.7]} 17. f5 {[%clk 0:01:30]} 17... Bxb3 {[%clk 0:04:09.9]} 18.
fxg6 {[%clk 0:01:02.5]} 18... Bxc2 {[%clk 0:04:03.1]} 19. Qxc2 {[%clk
0:00:55.5]} 19... fxg6 {[%clk 0:03:58.5]} 20. Qd2 {[%clk 0:00:19.1]} 20... Bb6
{[%clk 0:03:55.8]} 21. Bxb6 {[%clk 0:00:14.2]} 21... Qxb6+ {[%clk 0:03:53.4]}
22. Kh1 {[%clk 0:00:09.4]} 22... Rxf1+ {[%clk 0:03:46.7]} 23. Rxf1 {[%clk
0:00:07.5]} 23... Qc5 {[%clk 0:03:44.8]} 0-1

[Event "Live Chess"]
[Site "Chess.com"]
[Date "2023.05.21"]
[Round "-"]
[White "HadesLearmonth"]
[Black "Davidagye"]
[Result "1/2-1/2"]
[WhiteElo "1197"]
[BlackElo "1672"]
[TimeControl "300"]
[EndTime "3:35:08 PDT"]
[Termination "Game drawn by repetition"]

1. e4 {[%clk 0:04:58.8]} 1... e5 {[%clk 0:04:58.5]} 2. Nf3 {[%clk 0:04:57.6]}
2... Nc6 {[%clk 0:04:56.9]} 3. Bb5 {[%clk 0:04:56.2]} 3... a6 {[%clk 0:04:55.8]}
4. Ba4 {[%clk 0:04:54.5]} 4... Nf6 {[%clk 0:04:54.4]} 5. Nc3 {[%clk 0:04:49.3]}
5... b5 {[%clk 0:04:49.3]} 6. Bb3 {[%clk 0:04:47.5]} 6... Bc5 {[%clk 0:04:48.5]}
7. Nd5 {[%clk 0:04:40.7]} 7... O-O {[%clk 0:04:44.8]} 8. c3 {[%clk 0:04:37.8]}
8... h6 {[%clk 0:04:39]} 9. d4 {[%clk 0:04:36.3]} 9... exd4 {[%clk 0:04:37.6]}
10. cxd4 {[%clk 0:04:35]} 10... Ba7 {[%clk 0:04:32.7]} 11. Nxf6+ {[%clk
0:04:32.4]} 11... Qxf6 {[%clk 0:04:30]} 12. O-O {[%clk 0:04:31.2]} 12... Bb7
{[%clk 0:04:25]} 13. d5 {[%clk 0:04:29.4]} 13... Ne5 {[%clk 0:04:16.7]} 14. Nxe5
{[%clk 0:04:24]} 14... Qxe5 {[%clk 0:04:14.5]} 15. Qf3 {[%clk 0:04:20]} 15...
Kh8 {[%clk 0:04:11.3]} 16. Bf4 {[%clk 0:04:17.8]} 16... Qxb2 {[%clk 0:04:06.8]}
17. Bxc7 {[%clk 0:04:13.6]} 17... Rae8 {[%clk 0:03:52.3]} 18. Qg3 {[%clk
0:04:10.5]} 18... Rxe4 {[%clk 0:03:46.7]} 19. Rae1 {[%clk 0:04:02.4]} 19... Rxe1
{[%clk 0:03:37.7]} 20. Rxe1 {[%clk 0:04:00.5]} 20... Qd2 {[%clk 0:03:36.4]} 21.
Ra1 {[%clk 0:03:52.8]} 21... f5 {[%clk 0:03:34.5]} 22. Be5 {[%clk 0:03:47.9]}
22... Qg5 {[%clk 0:03:27.5]} 23. Qc3 {[%clk 0:03:37.8]} 23... Rc8 {[%clk
0:03:21.7]} 24. Qe1 {[%clk 0:03:25.3]} 24... Bb6 {[%clk 0:03:14.1]} 25. h3
{[%clk 0:03:15.8]} 25... a5 {[%clk 0:03:09.5]} 26. a4 {[%clk 0:03:14.1]} 26...
b4 {[%clk 0:03:06.1]} 27. g3 {[%clk 0:03:05.9]} 27... h5 {[%clk 0:02:51.3]} 28.
Bf4 {[%clk 0:03:03.7]} 28... Qg6 {[%clk 0:02:49.3]} 29. Qe5 {[%clk 0:02:33.3]}
29... h4 {[%clk 0:02:44.3]} 30. g4 {[%clk 0:02:28.9]} 30... fxg4 {[%clk
0:02:42.4]} 31. hxg4 {[%clk 0:02:27.9]} 31... Qxg4+ {[%clk 0:02:41.2]} 32. Kf1
{[%clk 0:02:27.3]} 32... Ba6+ {[%clk 0:02:34.9]} 33. Ke1 {[%clk 0:02:20.2]}
33... Qg1+ {[%clk 0:02:28.4]} 34. Kd2 {[%clk 0:02:17.3]} 34... Qxf2+ {[%clk
0:02:27.4]} 35. Kd1 {[%clk 0:02:11.9]} 35... Rc3 {[%clk 0:02:14.4]} 36. Qe8+
{[%clk 0:01:59.1]} 36... Kh7 {[%clk 0:02:07.2]} 37. Qh5+ {[%clk 0:01:53.2]}
37... Kg8 {[%clk 0:02:05]} 38. Qe8+ {[%clk 0:01:31.9]} 38... Kh7 {[%clk
0:02:03.2]} 39. Qh5+ {[%clk 0:01:30.7]} 39... Kg8 {[%clk 0:02:02.3]} 40. Qe8+
{[%clk 0:01:30]} 40... Kh7 {[%clk 0:02:01.3]} 1/2-1/2

[Event "Live Chess"]
[Site "Chess.com"]
[Date "2023.05.21"]
[Round "-"]
[White "WilliamofOrange16th"]
[Black "AttackingSnowLeopard"]
[Result "1-0"]
[WhiteElo "1885"]
[BlackElo "2179"]
[TimeControl "300"]
[EndTime "3:35:14 PDT"]
[Termination "WilliamofOrange16th won by resignation"]

1. e4 {[%clk 0:04:57.8]} 1... e5 {[%clk 0:04:58.6]} 2. Nf3 {[%clk 0:04:56.9]}
2... Nc6 {[%clk 0:04:57.5]} 3. Bc4 {[%clk 0:04:55.9]} 3... Bc5 {[%clk
0:04:55.8]} 4. O-O {[%clk 0:04:54.9]} 4... Nf6 {[%clk 0:04:54.4]} 5. d4 {[%clk
0:04:52.6]} 5... Bxd4 {[%clk 0:04:52.9]} 6. Nxd4 {[%clk 0:04:50.6]} 6... Nxd4
{[%clk 0:04:52.8]} 7. Bg5 {[%clk 0:04:46.6]} 7... h6 {[%clk 0:04:46.3]} 8. f4
{[%clk 0:04:42]} 8... d6 {[%clk 0:04:42]} 9. fxe5 {[%clk 0:04:37.1]} 9... dxe5
{[%clk 0:04:39.9]} 10. Bh4 {[%clk 0:04:33.7]} 10... Qe7 {[%clk 0:04:36.2]} 11.
c3 {[%clk 0:04:31]} 11... Ne6 {[%clk 0:04:34.1]} 12. Nd2 {[%clk 0:04:26.8]}
12... Bd7 {[%clk 0:04:31.8]} 13. Nf3 {[%clk 0:04:24.8]} 13... Nc5 {[%clk
0:04:16.1]} 14. Qe2 {[%clk 0:04:05.8]} 14... O-O-O {[%clk 0:04:03.7]} 15. b4
{[%clk 0:03:57]} 15... Ncxe4 {[%clk 0:04:01.3]} 16. Bxf6 {[%clk 0:03:46.3]}
16... Nxf6 {[%clk 0:03:59.9]} 17. Qxe5 {[%clk 0:03:44.3]} 17... Rhe8 {[%clk
0:03:51.9]} 18. Rae1 {[%clk 0:03:38.4]} 18... Qe6 {[%clk 0:03:46.9]} 19. Bxe6
{[%clk 0:03:36.7]} 1-0

[Event "Live Chess"]
[Site "Chess.com"]
[Date "2023.05.21"]
[Round "-"]
[White "MMmaaxxxx"]
[Black "diana21strabt"]
[Result "1-0"]
[WhiteElo "2019"]
[BlackElo "1744"]
[TimeControl "300"]
[EndTime "3:35:18 PDT"]
[Termination "MMmaaxxxx won by resignation"]

1. e4 {[%clk 0:04:59.4]} 1... d5 {[%clk 0:04:58.6]} 2. exd5 {[%clk 0:04:59.3]}
2... Qxd5 {[%clk 0:04:57.7]} 3. Nf3 {[%clk 0:04:58.8]} 3... Nf6 {[%clk
0:04:56.7]} 4. Be2 {[%clk 0:04:58.4]} 4... Bg4 {[%clk 0:04:55.7]} 5. d4 {[%clk
0:04:58.3]} 5... Nc6 {[%clk 0:04:54.3]} 6. Be3 {[%clk 0:04:57.9]} 6... O-O-O
{[%clk 0:04:52.9]} 7. c4 {[%clk 0:04:57.5]} 7... Qe4 {[%clk 0:04:51.3]} 8. Nc3
{[%clk 0:04:56.9]} 8... Qg6 {[%clk 0:04:46.5]} 9. h3 {[%clk 0:04:54.6]} 9...
Bxf3 {[%clk 0:04:45.4]} 10. Bxf3 {[%clk 0:04:54.5]} 10... e5 {[%clk 0:04:43.7]}
11. Bxc6 {[%clk 0:04:51.7]} 11... bxc6 {[%clk 0:04:42.7]} 12. Qa4 {[%clk
0:04:04.2]} 12... exd4 {[%clk 0:04:38.8]} 13. Qa6+ {[%clk 0:04:01.5]} 13... Kb8
{[%clk 0:04:35.2]} 14. O-O-O {[%clk 0:04:00.4]} 14... Bc5 {[%clk 0:04:23.7]} 15.
Na4 {[%clk 0:03:58.6]} 15... Bb6 {[%clk 0:04:09.5]} 16. Bf4 {[%clk 0:03:52]}
16... Qf5 {[%clk 0:03:54.9]} 17. Bg3 {[%clk 0:03:45.3]} 17... Ne4 {[%clk
0:03:33.3]} 18. c5 {[%clk 0:03:26.4]} 18... Nxg3 {[%clk 0:03:25.8]} 19. fxg3
{[%clk 0:03:25.2]} 19... Bxc5 {[%clk 0:03:16.8]} 20. Qxc6 {[%clk 0:03:15.4]}
20... Bb6 {[%clk 0:02:55.9]} 21. g4 {[%clk 0:03:06]} 21... Qg5+ {[%clk 0:02:53]}
22. Kb1 {[%clk 0:03:04.9]} 22... Rd6 {[%clk 0:02:51]} 23. Qc4 {[%clk 0:03:01.4]}
23... Qg6+ {[%clk 0:02:46.8]} 24. Ka1 {[%clk 0:02:58.5]} 24... Rhd8 {[%clk
0:02:33.6]} 25. Rhf1 {[%clk 0:02:52.2]} 25... Qe6 {[%clk 0:02:27.2]} 26. Qb5
{[%clk 0:02:47.3]} 26... Rd5 {[%clk 0:02:14.2]} 27. Qb4 {[%clk 0:02:44.8]} 27...
R5d6 {[%clk 0:01:52.3]} 28. Nc5 {[%clk 0:02:40.4]} 28... Qd5 {[%clk 0:01:43.3]}
29. Rf5 {[%clk 0:02:33.2]} 29... Qc6 {[%clk 0:01:35.5]} 30. Rc1 {[%clk
0:02:09.6]} 30... Rd5 {[%clk 0:01:26.6]} 31. Na6+ {[%clk 0:02:05.3]} 31... Kb7
{[%clk 0:01:24.7]} 32. Rxc6 {[%clk 0:02:05]} 32... Kxc6 {[%clk 0:01:23.6]} 33.
Qc4+ {[%clk 0:02:01.1]} 33... Kb7 {[%clk 0:01:21.3]} 34. Rxd5 {[%clk 0:01:59.6]}
34... Rxd5 {[%clk 0:01:19]} 35. Qxd5+ {[%clk 0:01:59.5]} 35... Kxa6 {[%clk
0:01:18.1]} 36. b4 {[%clk 0:01:57.6]} 36... c6 {[%clk 0:01:12]} 37. Qxc6 {[%clk
0:01:56]} 37... d3 {[%clk 0:01:10.9]} 38. Qc4+ {[%clk 0:01:54.6]} 38... Kb7
{[%clk 0:01:09.3]} 39. Qxd3 {[%clk 0:01:54.5]} 1-0